[Event "Late-Titled-Tuesday-Blitz-September-26-2023"]
[Site "Chess.com"]
[Date "2023.09.26"]
[Round "11"]
[White "Vadim_Biliy"]
[Black "miraitrunks"]
[Result "0-1"]
[WhiteElo "2298"]
[BlackElo "2187"]
[TimeControl "180+1"]
[EndTime "15:59:33 PDT"]
[Termination "miraitrunks won by resignation"]

1. d4 {[%clk 0:03:00.9]} 1... d5 {[%clk 0:02:58.5]} 2. Nf3 {[%clk 0:02:59.7]}
2... Nf6 {[%clk 0:02:57.8]} 3. e3 {[%clk 0:02:59.8]} 3... Bf5 {[%clk 0:02:58]}
4. c4 {[%clk 0:02:57.9]} 4... e6 {[%clk 0:02:58.1]} 5. Nbd2 {[%clk 0:02:55.9]}
5... c6 {[%clk 0:02:57.4]} 6. Qb3 {[%clk 0:02:55.4]} 6... Qb6 {[%clk 0:02:56.6]}
7. c5 {[%clk 0:02:55.6]} 7... Qxb3 {[%clk 0:02:56.5]} 8. axb3 {[%clk 0:02:55.8]}
8... a5 {[%clk 0:02:55.5]} 9. b4 {[%clk 0:02:53.7]} 9... b6 {[%clk 0:02:46.7]}
10. cxb6 {[%clk 0:02:17.1]} 10... Bxb4 {[%clk 0:02:44.5]} 11. Ne5 {[%clk
0:02:17.2]} 11... Nfd7 {[%clk 0:02:41]} 12. Nd3 {[%clk 0:01:50.8]} 12... Bxd3
{[%clk 0:02:27.8]} 13. Bxd3 {[%clk 0:01:50.4]} 13... Nxb6 {[%clk 0:02:27.7]} 14.
Ke2 {[%clk 0:01:50.6]} 14... N8d7 {[%clk 0:02:23.3]} 15. Nb3 {[%clk 0:01:50]}
15... O-O {[%clk 0:02:21.4]} 16. Bd2 {[%clk 0:01:49.5]} 16... Nc4 {[%clk
0:02:17.3]} 17. Bc3 {[%clk 0:01:37.4]} 17... Ndb6 {[%clk 0:02:12]} 18. Rhc1
{[%clk 0:01:33.3]} 18... g6 {[%clk 0:02:10.1]} 19. Nc5 {[%clk 0:01:31.1]} 19...
Rfb8 {[%clk 0:02:01.2]} 20. Na4 {[%clk 0:01:28.8]} 20... Nxa4 {[%clk 0:01:59.6]}
21. Rxa4 {[%clk 0:01:27.9]} 21... Bxc3 {[%clk 0:01:59.5]} 22. bxc3 {[%clk
0:01:26]} 22... Rb2+ {[%clk 0:01:56.5]} 23. Rc2 {[%clk 0:01:23.8]} 23... Rab8
{[%clk 0:01:49.9]} 24. Ra2 {[%clk 0:01:23.1]} 24... Rxc2+ {[%clk 0:01:47]} 25.
Bxc2 {[%clk 0:01:19.4]} 25... Kf8 {[%clk 0:01:38.2]} 26. Ba4 {[%clk 0:01:18.1]}
26... Rb6 {[%clk 0:01:35.2]} 27. f3 {[%clk 0:01:15.7]} 27... Ke7 {[%clk
0:01:34.8]} 28. e4 {[%clk 0:01:16.1]} 28... Kd6 {[%clk 0:01:20.9]} 29. e5+
{[%clk 0:01:14.7]} 29... Kc7 {[%clk 0:01:20.2]} 30. f4 {[%clk 0:01:14.8]} 30...
Rb2+ {[%clk 0:01:15.8]} 31. Rxb2 {[%clk 0:01:14.2]} 31... Nxb2 {[%clk
0:01:16.2]} 32. Bb3 {[%clk 0:01:12]} 32... a4 {[%clk 0:01:14.1]} 33. Ba2 {[%clk
0:01:12]} 33... a3 {[%clk 0:01:13.8]} 34. Kf3 {[%clk 0:01:11.3]} 34... Kb6
{[%clk 0:01:12.3]} 35. Kg4 {[%clk 0:01:11.3]} 35... c5 {[%clk 0:01:12.3]} 36.
Kg5 {[%clk 0:01:10.9]} 36... Nd1 {[%clk 0:01:08.1]} 37. Kh6 {[%clk 0:01:02.1]}
37... Nxc3 {[%clk 0:01:07.2]} 38. dxc5+ {[%clk 0:00:58.9]} 38... Kxc5 {[%clk
0:01:06.6]} 39. Bb3 {[%clk 0:00:59.4]} 39... a2 {[%clk 0:01:06.5]} 40. Bxa2
{[%clk 0:00:59.2]} 40... Nxa2 {[%clk 0:01:07.1]} 41. Kxh7 {[%clk 0:00:59.5]}
41... d4 {[%clk 0:01:06.7]} 42. Kg7 {[%clk 0:00:56.9]} 42... d3 {[%clk
0:01:07.1]} 43. Kxf7 {[%clk 0:00:57.2]} 43... d2 {[%clk 0:01:06.4]} 44. Kxg6
{[%clk 0:00:56.9]} 44... d1=Q {[%clk 0:01:05.8]} 45. h3 {[%clk 0:00:56.6]} 45...
Qd3+ {[%clk 0:01:03.6]} 46. Kh6 {[%clk 0:00:46]} 46... Qg3 {[%clk 0:01:00.1]}
0-1

[Event "Late-Titled-Tuesday-Blitz-September-26-2023"]
[Site "Chess.com"]
[Date "2023.09.26"]
[Round "11"]
[White "Defenstrator"]
[Black "arminmusovic"]
[Result "0-1"]
[WhiteElo "2394"]
[BlackElo "2518"]
[TimeControl "180+1"]
[EndTime "15:59:40 PDT"]
[Termination "arminmusovic won by resignation"]

1. a3 {[%clk 0:02:58.1]} 1... a6 {[%clk 0:02:53.5]} 2. Nc3 {[%clk 0:02:57.5]}
2... d5 {[%clk 0:02:52.8]} 3. e4 {[%clk 0:02:56.1]} 3... dxe4 {[%clk 0:02:53.7]}
4. Nxe4 {[%clk 0:02:56.1]} 4... Nf6 {[%clk 0:02:54.4]} 5. Nxf6+ {[%clk
0:02:52.5]} 5... exf6 {[%clk 0:02:55.3]} 6. d4 {[%clk 0:02:52]} 6... Bd6 {[%clk
0:02:55]} 7. Bd3 {[%clk 0:02:51.7]} 7... O-O {[%clk 0:02:53.8]} 8. Qh5 {[%clk
0:02:49.9]} 8... Re8+ {[%clk 0:02:53.2]} 9. Ne2 {[%clk 0:02:50.4]} 9... g6
{[%clk 0:02:53.1]} 10. Qh6 {[%clk 0:02:46]} 10... Bf8 {[%clk 0:02:52.8]} 11. Qh4
{[%clk 0:02:43.5]} 11... Nc6 {[%clk 0:02:50.9]} 12. O-O {[%clk 0:02:34.8]} 12...
Bg7 {[%clk 0:02:05.7]} 13. Bc4 {[%clk 0:01:56.5]} 13... Be6 {[%clk 0:02:00.3]}
14. d5 {[%clk 0:01:48.4]} 14... Bxd5 {[%clk 0:01:59.9]} 15. Rd1 {[%clk 0:01:46]}
15... Ne7 {[%clk 0:01:58.9]} 16. Bxd5 {[%clk 0:01:00.2]} 16... Nxd5 {[%clk
0:01:56.6]} 17. Nf4 {[%clk 0:00:57.6]} 17... g5 {[%clk 0:01:42.8]} 18. Qh5
{[%clk 0:00:48]} 18... gxf4 {[%clk 0:01:32.3]} 19. c4 {[%clk 0:00:32]} 19... Qe7
{[%clk 0:01:17.7]} 20. Bd2 {[%clk 0:00:24.7]} 20... Nb6 {[%clk 0:01:11.2]} 21.
Bb4 {[%clk 0:00:21.8]} 21... Qe2 {[%clk 0:01:07.5]} 22. Qc5 {[%clk 0:00:18.3]}
22... Qxc4 {[%clk 0:00:59.3]} 23. Qf5 {[%clk 0:00:19]} 23... Re5 {[%clk
0:00:55]} 24. Qh3 {[%clk 0:00:18.8]} 24... Rae8 {[%clk 0:00:51.6]} 25. Rac1
{[%clk 0:00:18.6]} 25... Qe6 {[%clk 0:00:50.7]} 26. Qf3 {[%clk 0:00:17.6]} 26...
Nd5 {[%clk 0:00:49.1]} 27. Bc5 {[%clk 0:00:16.2]} 27... Re1+ {[%clk 0:00:47.3]}
0-1

[Event "Late-Titled-Tuesday-Blitz-September-26-2023"]
[Site "Chess.com"]
[Date "2023.09.26"]
[Round "11"]
[White "Rutricks"]
[Black "Zavgorodniy_Sergiy"]
[Result "0-1"]
[WhiteElo "2674"]
[BlackElo "2600"]
[TimeControl "180+1"]
[EndTime "15:59:49 PDT"]
[Termination "Zavgorodniy_Sergiy won by resignation"]

1. g4 {[%clk 0:03:00.9]} 1... c5 {[%clk 0:02:59]} 2. Bg2 {[%clk 0:02:59.9]} 2...
Nc6 {[%clk 0:02:59]} 3. a3 {[%clk 0:02:59.4]} 3... d6 {[%clk 0:02:56.8]} 4. h3
{[%clk 0:02:58.3]} 4... g6 {[%clk 0:02:56.2]} 5. b4 {[%clk 0:02:58.7]} 5... cxb4
{[%clk 0:02:54.5]} 6. axb4 {[%clk 0:02:59]} 6... Nxb4 {[%clk 0:02:54.8]} 7. c4
{[%clk 0:02:58.4]} 7... Nc6 {[%clk 0:02:54.7]} 8. d4 {[%clk 0:02:58.6]} 8... Bg7
{[%clk 0:02:53.8]} 9. Nf3 {[%clk 0:02:57.9]} 9... Nf6 {[%clk 0:02:53.5]} 10. Nc3
{[%clk 0:02:57.4]} 10... O-O {[%clk 0:02:52.6]} 11. O-O {[%clk 0:02:48.9]} 11...
a6 {[%clk 0:02:52.5]} 12. Rb1 {[%clk 0:02:48.9]} 12... Qc7 {[%clk 0:02:42.3]}
13. Bg5 {[%clk 0:02:42.3]} 13... h6 {[%clk 0:02:41.5]} 14. Bxf6 {[%clk
0:02:41.8]} 14... exf6 {[%clk 0:02:41.7]} 15. Nd5 {[%clk 0:02:40.4]} 15... Qd8
{[%clk 0:02:42]} 16. Nb6 {[%clk 0:02:40.7]} 16... Rb8 {[%clk 0:02:40.7]} 17. e3
{[%clk 0:02:34.2]} 17... f5 {[%clk 0:02:40.6]} 18. Ne1 {[%clk 0:02:08.9]} 18...
fxg4 {[%clk 0:02:38.3]} 19. hxg4 {[%clk 0:02:09.8]} 19... Qh4 {[%clk 0:02:35.6]}
20. Nxc8 {[%clk 0:02:09.3]} 20... Rfxc8 {[%clk 0:02:34.4]} 21. Nd3 {[%clk
0:02:08.2]} 21... b5 {[%clk 0:02:31.4]} 22. cxb5 {[%clk 0:01:54.8]} 22... axb5
{[%clk 0:02:32.3]} 23. Nf4 {[%clk 0:01:55.4]} 23... Ne7 {[%clk 0:02:16.3]} 24.
Bf3 {[%clk 0:01:52.6]} 24... Qg5 {[%clk 0:01:59.7]} 25. Kg2 {[%clk 0:01:50.9]}
25... b4 {[%clk 0:01:49.6]} 26. Rh1 {[%clk 0:01:47.9]} 26... Rc3 {[%clk
0:01:42.7]} 27. Qa4 {[%clk 0:01:47.8]} 27... b3 {[%clk 0:01:19.9]} 28. Ne2
{[%clk 0:01:38.2]} 28... Rc2 {[%clk 0:01:14.5]} 29. Rxb3 {[%clk 0:01:35.9]}
29... Rbc8 {[%clk 0:01:14.6]} 30. Rb7 {[%clk 0:01:15.2]} 30... h5 {[%clk
0:01:12.3]} 31. Qd7 {[%clk 0:01:11]} 31... Bf8 {[%clk 0:01:09.8]} 32. Ng3 {[%clk
0:01:07.7]} 32... Qxe3 {[%clk 0:01:05.3]} 33. Ne4 {[%clk 0:00:55.3]} 33... d5
{[%clk 0:00:58.3]} 34. Qxc8 {[%clk 0:00:06]} 34... Nxc8 {[%clk 0:00:54.4]} 35.
Nf6+ {[%clk 0:00:05.7]} 35... Kg7 {[%clk 0:00:54.6]} 0-1

[Event "Late-Titled-Tuesday-Blitz-September-26-2023"]
[Site "Chess.com"]
[Date "2023.09.26"]
[Round "11"]
[White "CURRUTACO59"]
[Black "GMJustin"]
[Result "1-0"]
[WhiteElo "2254"]
[BlackElo "2199"]
[TimeControl "180+1"]
[EndTime "15:59:54 PDT"]
[Termination "CURRUTACO59 won on time"]

1. Nf3 {[%clk 0:03:00.3]} 1... h6 {[%clk 0:02:39.3]} 2. d4 {[%clk 0:02:59.1]}
2... g5 {[%clk 0:02:36]} 3. e4 {[%clk 0:02:59]} 3... Bg7 {[%clk 0:02:33.6]} 4.
c3 {[%clk 0:02:58.2]} 4... d6 {[%clk 0:02:31.3]} 5. Bd3 {[%clk 0:02:57.9]} 5...
c5 {[%clk 0:02:25.9]} 6. h3 {[%clk 0:02:52.4]} 6... Nc6 {[%clk 0:02:20.5]} 7.
Be3 {[%clk 0:02:51.8]} 7... Qb6 {[%clk 0:02:06.9]} 8. Qd2 {[%clk 0:02:02.9]}
8... Bd7 {[%clk 0:02:03.9]} 9. d5 {[%clk 0:01:57.1]} 9... Ne5 {[%clk 0:01:59.7]}
10. Nxe5 {[%clk 0:01:55.7]} 10... Bxe5 {[%clk 0:02:00.1]} 11. Na3 {[%clk
0:01:55.4]} 11... Qc7 {[%clk 0:01:46.2]} 12. Nc4 {[%clk 0:01:53.5]} 12... Bg7
{[%clk 0:01:40.4]} 13. a4 {[%clk 0:01:52.2]} 13... Nf6 {[%clk 0:01:38.2]} 14.
O-O {[%clk 0:01:47.7]} 14... O-O {[%clk 0:01:32.2]} 15. f4 {[%clk 0:01:45]}
15... g4 {[%clk 0:00:58.7]} 16. f5 {[%clk 0:01:41.8]} 16... gxh3 {[%clk
0:00:47.1]} 17. gxh3 {[%clk 0:01:42.7]} 17... Kh7 {[%clk 0:00:42.5]} 18. Kh1
{[%clk 0:01:40]} 18... Rg8 {[%clk 0:00:41.8]} 19. Rg1 {[%clk 0:01:39]} 19... b6
{[%clk 0:00:32.1]} 20. Rg2 {[%clk 0:01:32.8]} 20... a6 {[%clk 0:00:29.5]} 21. b3
{[%clk 0:00:58.5]} 21... b5 {[%clk 0:00:23.8]} 22. axb5 {[%clk 0:00:54.6]} 22...
axb5 {[%clk 0:00:23.4]} 23. Rxa8 {[%clk 0:00:54.3]} 23... Rxa8 {[%clk
0:00:22.7]} 24. Nb2 {[%clk 0:00:51.4]} 24... Qd8 {[%clk 0:00:07.3]} 25. Qf2
{[%clk 0:00:50.5]} 25... Ra1+ {[%clk 0:00:02.9]} 26. Kh2 {[%clk 0:00:49.7]}
26... Ra2 {[%clk 0:00:03.3]} 27. Qh4 {[%clk 0:00:47.8]} 27... Qg8 {[%clk
0:00:02.6]} 28. Bb1 {[%clk 0:00:40]} 28... Rxb2 {[%clk 0:00:01.8]} 29. Rxb2
{[%clk 0:00:38.8]} 1-0

[Event "Late-Titled-Tuesday-Blitz-September-26-2023"]
[Site "Chess.com"]
[Date "2023.09.26"]
[Round "11"]
[White "Oleksandr_Bortnyk"]
[Black "vugarrasulov"]
[Result "1-0"]
[WhiteElo "3023"]
[BlackElo "2948"]
[TimeControl "180+1"]
[EndTime "15:59:56 PDT"]
[Termination "Oleksandr_Bortnyk won by resignation"]

1. e4 {[%clk 0:03:00.4]} 1... c5 {[%clk 0:02:59.6]} 2. Be2 {[%clk 0:02:58.3]}
2... Nc6 {[%clk 0:02:59.3]} 3. f4 {[%clk 0:02:57.7]} 3... g6 {[%clk 0:02:56.6]}
4. Nf3 {[%clk 0:02:56.3]} 4... Bg7 {[%clk 0:02:57]} 5. c3 {[%clk 0:02:56.6]}
5... d5 {[%clk 0:02:54.3]} 6. d3 {[%clk 0:02:54.8]} 6... dxe4 {[%clk 0:02:52.6]}
7. dxe4 {[%clk 0:02:55.7]} 7... Qxd1+ {[%clk 0:02:52.9]} 8. Bxd1 {[%clk
0:02:56.6]} 8... b6 {[%clk 0:02:51.5]} 9. Ba4 {[%clk 0:02:48.9]} 9... Bd7 {[%clk
0:02:42.8]} 10. Be3 {[%clk 0:02:49.5]} 10... O-O-O {[%clk 0:02:43]} 11. Nbd2
{[%clk 0:02:47.2]} 11... Nf6 {[%clk 0:02:42.9]} 12. h3 {[%clk 0:02:42.9]} 12...
Kb7 {[%clk 0:02:40.3]} 13. O-O-O {[%clk 0:02:37.4]} 13... h6 {[%clk 0:01:59.6]}
14. g4 {[%clk 0:02:30.9]} 14... a6 {[%clk 0:01:49.1]} 15. Bb3 {[%clk 0:02:30.8]}
15... e6 {[%clk 0:01:49]} 16. g5 {[%clk 0:02:06.2]} 16... Nh5 {[%clk 0:01:46.7]}
17. Nc4 {[%clk 0:02:05.1]} 17... Kc7 {[%clk 0:01:44.3]} 18. Nd6 {[%clk
0:01:58.7]} 18... Rdf8 {[%clk 0:01:37.9]} 19. f5 {[%clk 0:01:48.8]} 19... gxf5
{[%clk 0:01:32.2]} 20. exf5 {[%clk 0:01:46]} 20... Ne5 {[%clk 0:01:27.6]} 21.
gxh6 {[%clk 0:01:06]} 21... Nxf3 {[%clk 0:00:59.8]} 22. hxg7 {[%clk 0:01:06.9]}
22... Nxg7 {[%clk 0:01:00.3]} 23. f6 {[%clk 0:00:40.4]} 23... Nh5 {[%clk
0:00:54.1]} 24. Nc4 {[%clk 0:00:32.8]} 24... Bc6 {[%clk 0:00:50.5]} 25. Rhf1
{[%clk 0:00:30.7]} 25... Rhg8 {[%clk 0:00:47.8]} 26. Bh6 {[%clk 0:00:26]} 26...
Rd8 {[%clk 0:00:46.9]} 27. Rxd8 {[%clk 0:00:26.4]} 27... Rxd8 {[%clk 0:00:47.8]}
28. Bd1 {[%clk 0:00:27.1]} 28... Ng3 {[%clk 0:00:41.3]} 29. Bf4+ {[%clk
0:00:26.9]} 29... Kb7 {[%clk 0:00:35.9]} 30. Bxg3 {[%clk 0:00:27]} 30... Ng5
{[%clk 0:00:36.2]} 31. Nd6+ {[%clk 0:00:26]} 31... Ka7 {[%clk 0:00:34]} 32. h4
{[%clk 0:00:23.5]} 32... Nh7 {[%clk 0:00:34.1]} 33. Nxf7 {[%clk 0:00:23.4]}
33... Rf8 {[%clk 0:00:32.8]} 34. Ne5 {[%clk 0:00:23.4]} 34... Bb5 {[%clk
0:00:33.2]} 35. c4 {[%clk 0:00:23.5]} 35... Be8 {[%clk 0:00:32.9]} 36. f7 {[%clk
0:00:23.6]} 1-0

[Event "Late-Titled-Tuesday-Blitz-September-26-2023"]
[Site "Chess.com"]
[Date "2023.09.26"]
[Round "11"]
[White "Fan_Of_Chucky"]
[Black "korason34"]
[Result "1/2-1/2"]
[WhiteElo "2520"]
[BlackElo "2637"]
[TimeControl "180+1"]
[EndTime "16:00:03 PDT"]
[Termination "Game drawn - insufficient material"]

1. d4 {[%clk 0:03:00.9]} 1... g6 {[%clk 0:02:54.7]} 2. c4 {[%clk 0:02:59.2]}
2... Bg7 {[%clk 0:02:55.2]} 3. Nc3 {[%clk 0:02:59.9]} 3... d6 {[%clk 0:02:53.8]}
4. e4 {[%clk 0:02:59.8]} 4... Nf6 {[%clk 0:02:53.7]} 5. h3 {[%clk 0:02:59.7]}
5... Nbd7 {[%clk 0:02:54.2]} 6. Be3 {[%clk 0:03:00.2]} 6... O-O {[%clk
0:02:54.6]} 7. Nf3 {[%clk 0:02:53.8]} 7... e5 {[%clk 0:02:54.8]} 8. d5 {[%clk
0:02:54.4]} 8... a6 {[%clk 0:02:54]} 9. g4 {[%clk 0:02:53]} 9... b6 {[%clk
0:02:53.4]} 10. Be2 {[%clk 0:02:52.6]} 10... Nc5 {[%clk 0:02:52.4]} 11. Nd2
{[%clk 0:02:52.6]} 11... a5 {[%clk 0:02:52.6]} 12. h4 {[%clk 0:02:51.9]} 12...
Nfd7 {[%clk 0:02:51.7]} 13. h5 {[%clk 0:02:45.5]} 13... f5 {[%clk 0:02:47.6]}
14. hxg6 {[%clk 0:02:45.5]} 14... hxg6 {[%clk 0:02:47.7]} 15. gxf5 {[%clk
0:02:44.2]} 15... gxf5 {[%clk 0:02:47.8]} 16. exf5 {[%clk 0:02:44.3]} 16... Nf6
{[%clk 0:02:47.7]} 17. Qc2 {[%clk 0:02:41.4]} 17... e4 {[%clk 0:02:42.1]} 18.
Bxc5 {[%clk 0:02:37]} 18... bxc5 {[%clk 0:02:41.9]} 19. Ndxe4 {[%clk 0:02:37.6]}
19... Bxf5 {[%clk 0:02:42.2]} 20. Nxf6+ {[%clk 0:02:34.4]} 20... Qxf6 {[%clk
0:02:43.1]} 21. Qd2 {[%clk 0:02:25.4]} 21... a4 {[%clk 0:02:38.8]} 22. a3 {[%clk
0:02:21.2]} 22... Rab8 {[%clk 0:02:37.9]} 23. Nxa4 {[%clk 0:01:58.4]} 23... Be6
{[%clk 0:02:37.9]} 24. dxe6 {[%clk 0:01:43.2]} 24... Qxf2+ {[%clk 0:02:36.6]}
25. Kd1 {[%clk 0:01:43.6]} 25... Qg2 {[%clk 0:02:27.5]} 26. Kc2 {[%clk
0:01:27.7]} 26... Rf2 {[%clk 0:02:24]} 27. Rae1 {[%clk 0:01:11.5]} 27... Qe4+
{[%clk 0:02:15.9]} 28. Qd3 {[%clk 0:00:55.3]} 28... Qxe6 {[%clk 0:02:14.4]} 29.
Qh7+ {[%clk 0:00:37.2]} 29... Kf8 {[%clk 0:02:14]} 30. Rhf1 {[%clk 0:00:33.5]}
30... Rxf1 {[%clk 0:01:57]} 31. Rxf1+ {[%clk 0:00:31.3]} 31... Ke8 {[%clk
0:01:56.9]} 32. Bh5+ {[%clk 0:00:23.6]} 32... Kd8 {[%clk 0:01:57]} 33. Qxg7
{[%clk 0:00:12.7]} 33... Qxc4+ {[%clk 0:01:57.1]} 34. Nc3 {[%clk 0:00:13.3]}
34... Qxf1 {[%clk 0:01:55]} 35. Qg8+ {[%clk 0:00:13.5]} 35... Kd7 {[%clk
0:01:51.2]} 36. Qxb8 {[%clk 0:00:11.5]} 36... Qf5+ {[%clk 0:01:49.8]} 37. Kc1
{[%clk 0:00:07]} 37... Qxh5 {[%clk 0:01:50]} 38. Qb5+ {[%clk 0:00:07]} 38... Ke7
{[%clk 0:01:49.1]} 39. Qe2+ {[%clk 0:00:07.2]} 39... Qxe2 {[%clk 0:01:46.8]} 40.
Nxe2 {[%clk 0:00:08.1]} 40... Kd7 {[%clk 0:01:47.2]} 41. Kd2 {[%clk 0:00:08.9]}
41... Kc6 {[%clk 0:01:47.9]} 42. Kc3 {[%clk 0:00:09.8]} 42... d5 {[%clk
0:01:48.5]} 43. Kd3 {[%clk 0:00:09.8]} 43... Kb5 {[%clk 0:01:48.5]} 44. Nc3+
{[%clk 0:00:09.4]} 44... Kc6 {[%clk 0:01:49.1]} 45. Nb1 {[%clk 0:00:07.8]} 45...
Kd6 {[%clk 0:01:49.7]} 46. Nd2 {[%clk 0:00:08.3]} 46... Kc6 {[%clk 0:01:46.5]}
47. Nf3 {[%clk 0:00:08.1]} 47... Kd6 {[%clk 0:01:46.6]} 48. Kc3 {[%clk
0:00:08.7]} 48... c4 {[%clk 0:01:46.8]} 49. Nd4 {[%clk 0:00:07.9]} 49... c5
{[%clk 0:01:47.1]} 50. Nc2 {[%clk 0:00:07.3]} 50... Kc6 {[%clk 0:01:47.5]} 51.
Ne3 {[%clk 0:00:06.4]} 51... d4+ {[%clk 0:01:47.1]} 52. Kxc4 {[%clk 0:00:07]}
52... dxe3 {[%clk 0:01:47.6]} 53. Kd3 {[%clk 0:00:07.7]} 53... Kb5 {[%clk
0:01:44.3]} 54. Kxe3 {[%clk 0:00:07.5]} 54... Kc4 {[%clk 0:01:44.9]} 55. Kd2
{[%clk 0:00:07.9]} 55... Kb3 {[%clk 0:01:45.3]} 56. Kc1 {[%clk 0:00:04.7]} 56...
c4 {[%clk 0:01:45.5]} 57. Kb1 {[%clk 0:00:03.4]} 57... c3 {[%clk 0:01:45.5]} 58.
bxc3 {[%clk 0:00:03.2]} 58... Kxc3 {[%clk 0:01:45.7]} 59. Ka2 {[%clk 0:00:02.7]}
59... Kc4 {[%clk 0:01:46]} 60. Kb2 {[%clk 0:00:03.1]} 60... Kb5 {[%clk
0:01:46.2]} 61. Kb3 {[%clk 0:00:04]} 61... Ka6 {[%clk 0:01:46.7]} 62. a4 {[%clk
0:00:04.9]} 62... Ka7 {[%clk 0:01:47.4]} 63. Kb4 {[%clk 0:00:05.8]} 63... Ka8
{[%clk 0:01:48.3]} 64. a5 {[%clk 0:00:06.7]} 64... Ka7 {[%clk 0:01:49.2]} 65.
Kb5 {[%clk 0:00:07.6]} 65... Ka8 {[%clk 0:01:50.1]} 66. a6 {[%clk 0:00:08.5]}
66... Ka7 {[%clk 0:01:51]} 67. Ka5 {[%clk 0:00:08.9]} 67... Ka8 {[%clk
0:01:51.9]} 68. Kb6 {[%clk 0:00:09.8]} 68... Kb8 {[%clk 0:01:52.3]} 69. Kb5
{[%clk 0:00:10.7]} 69... Ka8 {[%clk 0:01:53.2]} 70. Kc5 {[%clk 0:00:11.6]} 70...
Kb8 {[%clk 0:01:54.1]} 71. Kd4 {[%clk 0:00:11.9]} 71... Ka8 {[%clk 0:01:55]} 72.
Ke3 {[%clk 0:00:12.8]} 72... Kb8 {[%clk 0:01:55.9]} 73. Ke2 {[%clk 0:00:13.7]}
73... Ka8 {[%clk 0:01:56.8]} 74. Kf2 {[%clk 0:00:14.3]} 74... Ka7 {[%clk
0:01:57.7]} 75. Kg1 {[%clk 0:00:15.2]} 75... Kxa6 {[%clk 0:01:58.6]} 1/2-1/2

[Event "Late-Titled-Tuesday-Blitz-September-26-2023"]
[Site "Chess.com"]
[Date "2023.09.26"]
[Round "11"]
[White "WPWPWP-2015"]
[Black "wild3000"]
[Result "1-0"]
[WhiteElo "2509"]
[BlackElo "2351"]
[TimeControl "180+1"]
[EndTime "16:00:05 PDT"]
[Termination "WPWPWP-2015 won by checkmate"]

1. e4 {[%clk 0:03:00.9]} 1... a6 {[%clk 0:02:59.6]} 2. d4 {[%clk 0:02:57.5]}
2... e6 {[%clk 0:02:59.6]} 3. Nf3 {[%clk 0:02:55.5]} 3... d5 {[%clk 0:02:58.6]}
4. Bd3 {[%clk 0:02:54.7]} 4... dxe4 {[%clk 0:02:58.5]} 5. Bxe4 {[%clk
0:02:54.9]} 5... Nd7 {[%clk 0:02:59]} 6. c3 {[%clk 0:02:53.6]} 6... Be7 {[%clk
0:02:58.7]} 7. O-O {[%clk 0:02:52.9]} 7... Ngf6 {[%clk 0:02:58.6]} 8. Bc2 {[%clk
0:02:52.7]} 8... O-O {[%clk 0:02:58.2]} 9. b4 {[%clk 0:02:47.6]} 9... a5 {[%clk
0:02:54.6]} 10. b5 {[%clk 0:02:47.7]} 10... c5 {[%clk 0:02:52.7]} 11. bxc6
{[%clk 0:02:47.1]} 11... bxc6 {[%clk 0:02:52.5]} 12. Re1 {[%clk 0:02:36.5]}
12... c5 {[%clk 0:02:52.1]} 13. Ne5 {[%clk 0:02:31.1]} 13... Bb7 {[%clk
0:02:47.5]} 14. Be3 {[%clk 0:02:21.6]} 14... Nxe5 {[%clk 0:02:34.1]} 15. dxe5
{[%clk 0:02:20.8]} 15... Qxd1 {[%clk 0:02:31.3]} 16. Rxd1 {[%clk 0:02:19.6]}
16... Nd5 {[%clk 0:02:29.6]} 17. Bd2 {[%clk 0:02:18.1]} 17... c4 {[%clk
0:02:24.5]} 18. a4 {[%clk 0:02:14.9]} 18... Rfd8 {[%clk 0:02:20.6]} 19. Na3
{[%clk 0:02:12.7]} 19... Rac8 {[%clk 0:02:19]} 20. Nb5 {[%clk 0:02:11.6]} 20...
g5 {[%clk 0:02:06.8]} 21. g3 {[%clk 0:02:08.1]} 21... Kg7 {[%clk 0:02:05.3]} 22.
Be4 {[%clk 0:02:01.4]} 22... Bc6 {[%clk 0:02:03.2]} 23. Rab1 {[%clk 0:01:53.4]}
23... Rb8 {[%clk 0:02:00.5]} 24. Bg2 {[%clk 0:01:42.9]} 24... Rb6 {[%clk
0:01:49.3]} 25. Ra1 {[%clk 0:01:37.4]} 25... Rdb8 {[%clk 0:01:47.9]} 26. Nd4
{[%clk 0:01:35.5]} 26... Bd7 {[%clk 0:01:38.1]} 27. Bf1 {[%clk 0:01:34.7]} 27...
Rc8 {[%clk 0:01:28.8]} 28. Rdb1 {[%clk 0:01:29.9]} 28... Rxb1 {[%clk 0:01:27.7]}
29. Rxb1 {[%clk 0:01:29.8]} 29... Bxa4 {[%clk 0:01:26.4]} 30. Ra1 {[%clk
0:01:23.6]} 30... Nb6 {[%clk 0:01:25.8]} 31. Be3 {[%clk 0:01:21.4]} 31... Bb3
{[%clk 0:01:11.3]} 32. Rxa5 {[%clk 0:01:16.6]} 32... Nd7 {[%clk 0:01:01.7]} 33.
Ra7 {[%clk 0:01:12.1]} 33... Rd8 {[%clk 0:00:57.4]} 34. Nc6 {[%clk 0:01:11.5]}
34... Re8 {[%clk 0:00:54]} 35. Rxd7 {[%clk 0:01:09.1]} 35... Kf8 {[%clk
0:00:50.1]} 36. Rxe7 {[%clk 0:01:07.8]} 36... Rxe7 {[%clk 0:00:50.2]} 37. Bc5
{[%clk 0:01:07.8]} 37... Kg7 {[%clk 0:00:47]} 38. Bxe7 {[%clk 0:01:07.1]} 38...
h6 {[%clk 0:00:46.3]} 39. Nd4 {[%clk 0:01:06.3]} 39... Ba2 {[%clk 0:00:45.8]}
40. Bf6+ {[%clk 0:01:06.3]} 40... Kf8 {[%clk 0:00:44.5]} 41. Be2 {[%clk
0:01:04.2]} 41... Kg8 {[%clk 0:00:42.3]} 42. f3 {[%clk 0:01:03.8]} 42... Kh7
{[%clk 0:00:41.8]} 43. Kg2 {[%clk 0:01:04]} 43... Kg6 {[%clk 0:00:42]} 44. h3
{[%clk 0:01:04.2]} 44... h5 {[%clk 0:00:42.1]} 45. Kf2 {[%clk 0:01:04.2]} 45...
Kh6 {[%clk 0:00:40.4]} 46. h4 {[%clk 0:01:04]} 46... gxh4 {[%clk 0:00:40.2]} 47.
gxh4 {[%clk 0:01:04.9]} 47... Kg6 {[%clk 0:00:40.9]} 48. Kg3 {[%clk 0:01:05.2]}
48... Kh6 {[%clk 0:00:40.2]} 49. Kf4 {[%clk 0:01:05.5]} 49... Kg6 {[%clk
0:00:39]} 50. Bd1 {[%clk 0:01:05.8]} 50... Kh6 {[%clk 0:00:38.2]} 51. Be7 {[%clk
0:00:49.3]} 51... Kg6 {[%clk 0:00:37.2]} 52. Bc2+ {[%clk 0:00:49.1]} 52... Kh6
{[%clk 0:00:37.1]} 53. Bf8# {[%clk 0:00:48.8]} 1-0